bitfinex-derivatives/quotes_SOLF0:USTF0_20250514
["timestamp","ask_amount","ask_price","bid_price","bid_amount"]
[1747254856522,56.04,177.17,177.08,56.04]
[1747254856720,65.9313561,177.17,177.08,56.04]
[1747254857122,5.6446,177.14,177.1,5.6456]
[1747254857926,5.6446,177.14,177.11,5.6453]
[1747254858121,5.6441,177.15,177.08,56.04]
[1747254858627,5.6441,177.15,177.11,5.6451]
[1747254858925,5.6441,177.15,177.08,56.04]
[1747254859227,5.6441,177.15,177.11,5.6451]
[1747254861427,5.6444,177.14,177.11,5.6451]
[1747254862024,5.6447,177.13,177.1,5.6456]
[1747254862926,5.6445,177.14,177.1,5.6456]
[1747254863120,5.6445,177.14,177.08,56.04]
[1747254863121,5.6445,177.14,177.11,5.6452]
[1747254866428,5.6441,177.15,177.12,5.6449]
[1747254867028,5.6445,177.14,177.11,5.6452]
[1747254867724,5.6439,177.16,177.08,56.04]
[1747254868434,5.6441,177.15,177.12,5.6448]
[1747254869333,56.04,177.17,177.08,56.04]
[1747254870433,5.6439,177.16,177.08,56.04]
[1747254871031,5.6439,177.16,177.13,5.6447]
[1747254878337,56.04,177.17,177.04,23.1272561]
[1747254878530,9.8913561,177.15,177.05,56.02]
[1747254878935,5.6454,177.11,177.08,5.6463]
[1747254879440,65.9313561,177.12,177.06,5.6467]
[1747254879637,65.9313561,177.12,177.05,56.02]
[1747254879835,5.6458,177.1,177.08,5.6462]
[1747254880538,5.6454,177.11,177.08,5.6462]
[1747254881139,5.6457,177.1,177.08,5.6462]
[1747254882137,5.6457,177.1,177.05,56.02]
[1747254882534,65.9313561,177.12,177.01,56.04]
[1747254882731,65.9313561,177.12,176.98,5.5357]
[1747254882732,9.8913561,177.04,176.94,56.04]
[1747254882932,9.8913561,177.02,176.88,135.97200215]
[1747254883136,62.8333,177.01,176.88,135.97200215]
[1747254883335,9.8913561,176.99,176.88,135.97200215]
[1747254883536,5.6501,176.96,176.91,6.64067491]
[1747254883736,59.82,176.98,176.91,6.64067491]
[1747254884032,5.6514,176.92,176.91,6.64067491]
[1747254885345,65.8111,176.93,176.91,6.64067491]
[1747254885641,60.16,176.93,176.91,6.64067491]
[1747254885943,5.6514,176.92,176.91,6.64067491]
[1747254886141,70.0513561,176.93,176.9,19.92202473]
[1747254886443,5.6517,176.91,176.9,19.92202473]
[1747254886742,70.0513561,176.93,176.9,19.92202473]
[1747254886936,65.8112,176.93,176.9,19.92202473]
[1747254887242,60.16,176.93,176.9,19.92202473]
[1747254887438,60.16,176.93,176.84,59.04]
[1747254887439,5.6515,176.92,176.84,59.04]
[1747254888038,5.6515,176.92,176.86,5.653]
[1747254888237,65.8111,176.93,176.84,59.04]
[1747254888436,60.16,176.93,176.84,59.04]
[1747254888641,5.6514,176.92,176.86,5.6533]
[1747254889043,5.6514,176.92,176.84,59.04]
[1747254889244,60.16,176.93,176.84,59.04]
[1747254889639,60.16,176.93,176.84,68.9313561]
[1747254890241,60.16,176.93,176.84,59.04]
[1747254890444,5.6514,176.92,176.87,5.653]
[1747254890643,60.16,176.93,176.84,59.04]
[1747254891644,5.6517,176.91,176.86,5.653]
[1747254891844,5.6517,176.91,176.84,59.04]
[1747254892244,5.652,176.9,176.86,5.653]
[1747254893848,5.6517,176.91,176.87,5.6529]
[1747254894444,65.8111,176.93,176.84,68.9313561]
[1747254894646,9.8913561,176.96,176.85,62.88]
[1747254894850,62.86,176.97,176.87,9.8913561]
[1747254895650,62.86,176.97,176.9,5.6518]
[1747254895947,62.86,176.97,176.87,9.8913561]
[1747254896548,62.86,176.97,176.9,5.652]
[1747254896852,62.86,176.97,176.72,9.8913561]
[1747254897051,62.86,176.97,176.82,129.1648]
[1747254897247,5.6519,176.91,176.82,129.1648]
[1747254899051,5.6514,176.92,176.82,129.1648]
[1747254899752,5.6511,176.93,176.82,129.1648]
[1747254899952,5.6511,176.93,176.84,9.8913561]
[1747254900347,9.8913561,176.96,176.82,129.1648]
[1747254900752,9.8913561,176.96,176.88,5.6524]
[1747254900947,5.6512,176.93,176.82,129.1648]
[1747254901149,5.6512,176.93,176.84,9.8913561]
[1747254901349,9.8913561,176.96,176.84,9.8913561]
[1747254901552,9.8913561,176.96,176.82,129.1648]
[1747254901752,62.54,176.98,176.84,9.8913561]
[1747254901753,9.8913561,176.98,176.84,9.8913561]
[1747254901948,125.32,176.97,176.85,1.9043]
[1747254902148,5.6507,176.95,176.91,5.6515]
[1747254903954,5.6507,176.95,176.92,5.6514]
[1747254905351,5.6507,176.95,176.91,5.6516]
[1747254905556,9.8913561,176.95,176.88,62.54]
[1747254905952,9.8913561,176.95,176.88,68.1926]
[1747254905953,5.6516,176.92,176.88,68.1926]
[1747254906454,5.6516,176.92,176.89,5.6523]
[1747254906956,5.6517,176.91,176.88,62.54]
[1747254907556,5.6515,176.92,176.88,68.1924]
[1747254907854,9.8913561,176.95,176.88,68.1924]
[1747254908152,5.6517,176.92,176.88,68.1924]
[1747254908460,5.6517,176.92,176.89,5.6523]
[1747254909659,5.6517,176.91,176.88,68.1926]
[1747254910055,9.8913561,176.95,176.88,62.54]
[1747254910258,9.8913561,176.95,176.84,62.56]
[1747254910460,9.8913561,176.92,176.84,62.56]
[1747254910758,5.6534,176.86,176.83,5.6542]
[1747254911357,5.6531,176.87,176.81,487.88]
[1747254912363,5.6531,176.87,176.83,5.654]
[1747254912753,64.2642,176.91,176.81,487.88]
[1747254912956,64.2642,176.91,176.82,5.6545]
[1747254913261,5.6538,176.85,176.82,5.6545]
[1747254914566,5.6539,176.84,176.81,5.6549]
[1747254914766,64.2642,176.91,176.8,62.56]
[1747254914960,9.8913561,176.89,176.8,62.56]
[1747254915164,1.8442,176.91,176.8,62.56]
[1747254915365,62.38,176.9,176.81,9.8913561]
[1747254915564,62.38,176.9,176.85,5.6534]
[1747254915767,62.38,176.9,176.81,9.8913561]
[1747254916068,5.6529,176.88,176.84,5.6537]
[1747254916763,5.6524,176.89,176.81,9.8913561]
[1747254917365,5.6524,176.89,176.85,5.6534]
[1747254917567,62.38,176.9,176.8,62.56]
[1747254917767,9.8913561,176.89,176.8,62.56]
[1747254918166,62.38,176.9,176.8,62.56]
[1747254918769,5.6527,176.88,176.84,5.6537]
[1747254919159,62.38,176.9,176.8,62.56]
[1747254919362,5.6525,176.89,176.85,5.6534]
[1747254919569,5.6525,176.89,176.8,62.56]
[1747254919764,68.0321,176.9,176.86,5.6532]
[1747254919969,3.7884,176.94,176.81,9.8913561]
[1747254920169,124.64,176.93,176.81,9.8913561]
[1747254920371,5.6514,176.92,176.88,5.6524]
[1747254921169,124.64,176.93,176.85,62.38]
[1747254921569,5.6516,176.92,176.88,5.6526]
[1747254923077,5.6516,176.92,176.89,5.6522]
[1747254923479,5.6516,176.92,176.85,62.38]
[1747254923674,5.6516,176.92,176.88,5.6525]
[1747254924079,62.38,176.93,176.85,62.38]
[1747254924276,124.58,176.93,176.87,5.6529]
[1747254924778,5.652,176.9,176.87,5.6529]
[1747254925379,5.6518,176.91,176.88,5.6526]
[1747254926182,62.38,176.93,176.85,62.38]
[1747254926480,124.52,176.93,176.85,62.38]
[1747254926779,130.1711,176.93,176.9,5.6519]
[1747254927482,68.0311,176.93,176.9,5.6519]
[1747254928775,62.06,176.97,176.87,9.8913561]
[1747254929280,5.65,176.97,176.87,9.8913561]
[1747254929481,124.52,176.98,176.87,9.8913561]
[1747254929782,68.0296,176.98,176.95,5.6503]
[1747254929980,5.6496,176.98,176.95,5.6503]
[1747254930181,62.14,177.0,176.91,62.38]
[1747254930681,62.12,177.0,176.91,62.38]
[1747254930882,62.12,177.0,176.92,3.5595]
[1747254932083,62.12,177.0,176.99,5.6491]
[1747254932284,62.04,177.04,176.96,62.36]
[1747254932685,5.6484,177.02,176.96,62.36]
[1747254932880,62.04,177.04,176.96,62.36]
[1747254933985,5.6481,177.03,176.96,62.36]
[1747254934385,61.96,177.04,176.96,62.36]
[1747254934585,5.6486,177.01,176.96,62.36]
[1747254935288,5.6486,177.01,176.97,5.6496]
[1747254935684,5.6486,177.01,176.96,62.36]
[1747254936088,5.6486,177.01,176.97,5.6496]
[1747254936290,5.6488,177.0,176.97,5.6496]
[1747254936491,5.6488,177.0,176.96,62.36]
[1747254936992,5.6488,177.0,176.96,68.0098]
[1747254937183,5.6488,177.0,176.96,62.36]
[1747254937494,5.6486,177.01,176.96,62.36]
[1747254938596,61.96,177.04,176.96,62.36]
[1747254939097,61.96,177.04,176.98,5.6493]
[1747254939396,5.6485,177.01,176.98,5.6493]
[1747254939694,61.96,177.04,176.98,5.6493]
[1747254939895,5.6484,177.02,176.98,5.6493]
[1747254940896,5.6485,177.01,176.98,5.6493]
[1747254943800,5.6482,177.02,176.99,5.6491]
[1747254945000,1.803,177.05,176.96,62.36]
[1747254945201,1.803,177.05,176.96,72.2513561]
[1747254945406,61.54,177.05,176.96,72.2513561]
[1747254945603,72.2313561,177.08,176.96,72.2513561]
[1747254945904,61.52,177.07,176.96,72.2513561]
[1747254946098,5.6474,177.05,177.01,5.6482]
[1747254946299,5.6474,177.05,176.96,72.2513561]
[1747254947497,5.6476,177.04,177.01,5.6485]
[1747254947701,61.42,177.07,176.96,72.2513561]
[1747254948003,5.6474,177.05,176.96,72.2513561]
[1747254948304,62.34,177.08,176.96,72.2513561]
[1747254948506,5.6476,177.04,177.0,5.6486]
[1747254949102,61.36,177.03,176.97,5.6497]
[1747254949406,122.86,177.03,176.96,62.36]
[1747254949602,5.6485,177.01,176.96,62.36]
[1747254949904,122.86,177.03,176.96,62.36]
[1747254950204,122.86,177.03,176.96,68.0099]
[1747254950502,122.86,177.03,176.96,62.36]
[1747254950702,122.86,177.03,176.97,5.6495]
[1747254951104,5.6487,177.01,176.98,5.6492]
[1747254951901,122.78,177.03,176.96,62.36]
[1747254952102,61.28,177.03,176.96,62.36]
[1747254952503,66.928,177.03,177.0,5.6487]
[1747254955005,61.28,177.03,176.96,62.36]
[1747254955406,66.9279,177.03,176.99,5.6488]
[1747254956303,66.9279,177.03,177.0,5.6488]
[1747254956703,61.28,177.03,176.96,62.36]
[1747254957906,61.28,177.03,177.01,5.6482]
[1747254959303,61.28,177.03,177.0,5.6487]
[1747254959500,61.28,177.03,176.96,62.36]
[1747254960804,5.6487,177.01,176.98,5.6492]
[1747254961208,61.28,177.03,176.96,62.36]
[1747254961409,5.6491,176.99,176.96,68.01]
[1747254962307,5.6491,176.99,176.97,5.6497]
[1747254962508,61.28,177.03,176.97,5.6497]
[1747254962801,9.8913561,177.05,176.96,62.36]
[1747254963007,61.06,177.04,176.96,62.36]
[1747254963709,66.7077,177.04,176.96,62.36]
[1747254963905,61.06,177.04,176.96,62.36]
[1747254964710,61.5,177.07,176.96,62.36]
[1747254965010,61.0,177.06,176.96,62.36]
[1747254965410,5.6474,177.05,177.02,5.6481]
[1747254966511,5.6476,177.04,177.01,5.6484]
[1747254967114,5.6476,177.04,176.96,123.34]
[1747254968408,61.0,177.06,176.96,123.34]
[1747254968614,9.8913561,177.05,176.96,62.36]
[1747254968909,9.8913561,177.05,176.97,5.6497]
[1747254969308,9.8913561,177.02,176.96,62.36]
[1747254969509,60.98,177.01,176.91,549.68]
[1747254969712,5.6503,176.96,176.91,549.68]
[1747254970013,60.96,176.96,176.91,61.5]
[1747254970413,66.6102,176.96,176.93,5.6509]
[1747254970710,60.96,176.96,176.93,5.6509]
[1747254970913,60.96,176.96,176.92,5.6513]
[1747254971314,60.96,176.96,176.91,61.5]
[1747254971617,5.6509,176.94,176.91,67.1514]
[1747254971809,60.96,176.96,176.91,61.5]
[1747254972215,5.6508,176.94,176.92,5.6511]
[1747254972714,5.6508,176.94,176.91,67.1516]
[1747254972916,60.96,176.96,176.91,61.5]
[1747254973111,70.8513561,176.96,176.87,61.52]
[1747254973418,70.8513561,176.96,176.88,5.6524]
[1747254973613,5.6519,176.91,176.88,5.6524]
[1747254974210,60.76,176.91,176.87,61.52]
[1747254974811,60.76,176.91,176.87,67.1727]
[1747254975014,60.76,176.91,176.87,61.52]
[1747254975917,60.98,176.92,176.87,61.52]
[1747254976110,60.98,176.93,176.87,61.52]
[1747254976415,60.98,176.93,176.9,5.6518]
[1747254977016,66.6108,176.94,176.9,5.6518]
[1747254977711,66.6108,176.94,176.91,5.6517]
[1747254978217,9.8913561,176.98,176.87,61.52]
[1747254978516,60.88,176.97,176.87,122.44]
[1747254978716,5.6497,176.98,176.88,3.6831]
[1747254978919,66.5697,176.98,176.94,5.6505]
[1747254979215,66.5697,176.98,176.88,3.6831]
[1747254979411,60.92,176.98,176.88,3.6831]
[1747254979606,60.92,176.98,176.95,5.6504]
[1747254981620,66.5695,176.98,176.95,5.6504]
[1747254981818,60.92,176.98,176.97,5.6498]
[1747254982020,60.9,177.02,176.92,60.9]
[1747254982322,60.76,177.01,176.92,70.7913561]
[1747254983015,3.7139,177.05,176.95,9.8913561]
[1747254983209,61.04,177.03,176.95,9.8913561]
[1747254983914,1.7933,177.05,176.95,9.8913561]
[1747254984120,61.16,177.05,176.96,3.7256]
[1747254984322,61.16,177.05,176.97,60.88]
[1747254984820,66.8074,177.05,176.97,60.88]
[1747254985120,5.6474,177.05,176.97,60.88]
[1747254985315,61.08,177.05,176.97,60.88]
[1747254985922,5.6481,177.03,176.99,5.6491]
[1747254986122,61.08,177.05,176.99,5.6491]
[1747254986622,5.6483,177.02,176.98,5.6494]
[1747254987720,5.6483,177.02,176.99,5.6491]
[1747254988019,5.6483,177.02,176.97,60.88]
[1747254988621,5.6483,177.02,176.98,5.6492]
[1747254989318,5.6486,177.01,176.98,5.6492]
[1747254989518,61.08,177.05,176.98,5.6492]
[1747254990724,5.6485,177.01,176.98,5.6492]
[1747254990923,61.08,177.05,176.97,60.88]
[1747254991624,5.6481,177.03,177.0,5.6488]
[1747254992020,61.08,177.05,176.93,60.88]
[1747254992321,5.649,177.0,176.97,5.6497]
[1747254992716,60.88,177.03,176.93,60.88]
[1747254993118,61.14,177.02,176.93,60.88]
[1747254993525,61.14,177.02,177.0,5.6487]
[1747254994327,61.14,177.02,176.99,5.649]
[1747254994527,61.14,177.02,176.93,60.88]
[1747254995427,1.9037,177.01,176.93,60.88]
[1747254995623,9.8913561,177.0,176.94,5.6506]
[1747254995926,60.88,177.0,176.89,549.14]
[1747254996114,9.8913561,176.98,176.89,549.14]
[1747254996427,5.6506,176.95,176.89,549.14]
[1747254996622,5.6506,176.95,176.91,5.6514]
[1747254996926,5.6508,176.94,176.91,5.6514]
[1747254997226,61.28,176.97,176.89,549.14]
[1747254998226,5.6505,176.95,176.92,5.6512]
[1747254999025,5.6502,176.96,176.92,5.6512]
[1747254999227,5.6502,176.96,176.93,5.651]
[1747254999425,61.28,176.97,176.89,549.14]
[1747254999821,5.6505,176.95,176.92,5.6513]
[1747255000027,61.28,176.97,176.89,549.14]
[1747255000329,61.28,176.97,176.89,60.88]
[1747255000528,5.651,176.94,176.91,5.6516]
[1747255001238,61.28,176.97,176.89,60.88]
[1747255001528,1.8777,176.96,176.85,9.8913561]
[1747255001726,60.88,176.95,176.85,70.7713561]
[1747255001925,5.6513,176.93,176.9,5.6518]
[1747255002431,5.6508,176.94,176.91,5.6516]
[1747255004629,5.6511,176.93,176.91,5.6516]
[1747255005934,5.6511,176.93,176.9,5.6519]
[1747255006129,5.6515,176.92,176.85,70.7713561]
[1747255007134,5.6517,176.91,176.85,70.7713561]
[1747255008134,5.6517,176.91,176.88,5.6525]
[1747255008331,5.6514,176.92,176.85,70.7713561]
[1747255008828,5.6514,176.92,176.89,5.6521]
[1747255010137,5.6517,176.91,176.88,5.6525]
[1747255010434,60.56,176.93,176.88,5.6525]
[1747255011035,5.6519,176.91,176.88,5.6525]
[1747255013032,5.652,176.9,176.87,5.6528]
[1747255013237,60.56,176.93,176.87,5.6528]
[1747255013534,5.6519,176.91,176.88,5.6525]
[1747255014633,60.56,176.93,176.85,60.88]
[1747255015140,66.2112,176.93,176.9,5.6519]
[1747255015639,66.2112,176.93,176.85,60.88]
[1747255016442,66.2112,176.93,176.9,5.6519]
[1747255018244,5.6514,176.92,176.89,5.6522]
[1747255018743,60.56,176.93,176.89,5.6522]
[1747255019040,66.2112,176.93,176.89,5.6522]
[1747255019243,66.2112,176.93,176.9,5.6519]
[1747255020744,66.2112,176.93,176.85,60.88]
[1747255021244,66.2112,176.93,176.9,5.6519]
[1747255022546,60.88,176.95,176.93,5.6511]
[1747255022745,60.32,176.96,176.93,5.6511]
[1747255023345,5.6503,176.96,176.93,5.6511]
[1747255023547,65.9503,176.96,176.93,5.6511]
[1747255024339,72.4112561,176.99,176.85,60.88]
[1747255024546,60.26,176.98,176.88,9.8913561]
[1747255024947,65.9095,176.98,176.94,5.6506]
[1747255025450,60.26,176.98,176.94,5.6506]
[1747255026148,5.65,176.97,176.93,5.6509]
[1747255026349,60.26,176.98,176.91,60.76]
[1747255027146,60.26,176.98,176.87,121.02]
[1747255027345,62.0232,176.98,176.87,121.02]
[1747255027547,62.0232,176.98,176.89,5.6522]
[1747255028046,5.6517,176.92,176.89,5.6522]
[1747255028345,60.14,176.94,176.89,5.6522]
[1747255029248,5.6516,176.92,176.89,5.6522]
[1747255030249,5.6517,176.91,176.89,5.6522]
[1747255031647,5.6517,176.91,176.88,5.6526]
[1747255031844,9.8913561,176.93,176.83,60.76]
[1747255032152,11.7358561,176.93,176.83,60.76]
[1747255032651,11.7358561,176.93,176.85,5.6536]
[1747255033651,11.7358561,176.93,176.83,60.76]
[1747255033852,5.6532,176.87,176.83,60.76]
[1747255034156,5.6532,176.87,176.84,5.6537]
[1747255034453,5.6528,176.88,176.83,60.76]
[1747255035053,5.6528,176.88,176.85,5.6536]
[1747255035552,59.86,176.89,176.83,60.76]
[1747255036750,59.86,176.89,176.86,5.653]
[1747255037054,59.86,176.89,176.83,60.76]
[1747255037257,5.6511,176.93,176.84,9.8913561]
[1747255037555,59.88,176.93,176.89,5.6522]
[1747255038254,65.5312,176.93,176.9,5.652]
[1747255038458,11.7844561,176.97,176.84,11.7779561]
[1747255038650,59.82,176.94,176.85,59.8]
[1747255039053,65.4709,176.94,176.9,5.6518]
[1747255039250,65.4709,176.94,176.85,59.8]
[1747255039457,59.8,176.96,176.87,9.8913561]
[1747255039655,119.62,176.96,176.87,69.7113561]
[1747255039855,125.2701,176.96,176.88,1.9461]
[1747255040048,125.2701,176.96,176.89,59.8]
[1747255040255,119.62,176.96,176.94,5.6507]
[1747255040557,5.6499,176.97,176.94,5.6507]
[1747255040558,59.78,176.97,176.94,5.6507]
[1747255040855,5.6497,176.98,176.95,5.6504]
[1747255041058,59.76,176.98,176.89,59.8]
[1747255041752,59.76,176.98,176.94,5.6505]
[1747255042055,5.6501,176.97,176.93,5.651]
[1747255042659,65.4096,176.98,176.94,5.6506]
[1747255043060,59.76,176.98,176.94,5.6506]
[1747255043360,5.6498,176.97,176.94,5.6506]
[1747255043658,59.76,176.98,176.89,59.8]
[1747255044059,5.6498,176.97,176.94,5.6505]
[1747255044860,5.6502,176.96,176.89,59.8]
[1747255045958,5.6502,176.96,176.92,5.6512]
[1747255046759,5.6502,176.96,176.93,5.651]
[1747255048261,5.6505,176.95,176.92,5.6512]
[1747255050059,59.56,177.0,176.9,9.8913561]
[1747255050261,59.56,177.01,176.91,119.34]
[1747255050560,5.6493,176.99,176.96,5.6499]
[1747255050957,5.6489,177.0,176.91,121.1553]
[1747255052562,5.6489,177.0,176.96,5.6499]
[1747255053063,5.6492,176.99,176.96,5.6499]
[1747255053363,5.6492,176.99,176.95,5.6503]
[1747255053859,59.46,177.01,176.95,5.6503]
[1747255054566,5.6495,176.98,176.95,5.6503]
[1747255055166,59.46,177.01,176.91,61.5953]
[1747255055368,69.3513561,177.01,176.91,59.78]
[1747255055964,5.6506,176.95,176.92,5.6512]
[1747255056363,5.6511,176.93,176.91,59.78]
[1747255056666,59.38,176.97,176.91,59.78]
[1747255057166,5.6512,176.93,176.91,59.78]
[1747255057565,59.38,176.97,176.91,59.78]
[1747255057860,65.0301,176.97,176.94,5.6507]
[1747255058066,59.38,176.97,176.94,5.6507]
[1747255058266,59.38,176.97,176.91,59.78]
[1747255058460,5.6503,176.96,176.93,5.6507]
[1747255059366,5.6503,176.96,176.94,5.6507]
[1747255060066,5.6505,176.95,176.93,5.6509]
[1747255060267,5.6505,176.95,176.91,59.78]
[1747255060463,59.3,176.98,176.91,59.78]
[1747255062564,69.1913561,176.98,176.91,59.78]
[1747255062761,1.9226,176.97,176.91,59.78]
[1747255062968,9.8913561,176.95,176.87,59.78]
[1747255063268,5.6519,176.91,176.88,5.6525]
[1747255064068,59.18,176.94,176.87,59.78]
[1747255066066,59.18,176.94,176.87,65.4328]
[1747255066067,5.6522,176.9,176.87,65.4328]
[1747255066570,59.18,176.94,176.87,65.4328]
[1747255067773,59.18,176.94,176.87,59.78]
[1747255067972,9.8913561,176.92,176.83,59.06]
[1747255068175,68.9513561,176.92,176.83,59.06]
[1747255068371,68.9513561,176.92,176.84,5.6537]
[1747255068572,68.9513561,176.92,176.83,59.06]
[1747255069675,68.9513561,176.92,176.84,5.6537]
[1747255069873,68.9513561,176.92,176.83,59.06]
[1747255070374,5.6531,176.87,176.83,59.06]
[1747255070675,59.08,176.88,176.83,59.06]
[1747255072574,5.653,176.87,176.85,5.6534]
[1747255072773,59.08,176.88,176.83,59.06]
[1747255073075,64.7328,176.88,176.83,59.06]
[1747255073670,59.08,176.88,176.8,488.28]
[1747255074072,118.16,176.88,176.79,59.08]
[1747255074274,121.7906,176.88,176.79,59.08]
[1747255074470,5.6542,176.84,176.81,5.6549]
[1747255074877,5.6542,176.84,176.79,59.08]
[1747255075077,5.6542,176.84,176.8,5.655]
[1747255075684,5.6542,176.84,176.81,5.6547]
[1747255075979,5.6542,176.84,176.79,59.08]
[1747255076686,5.6537,176.85,176.82,5.6546]
[1747255076984,119.9184,176.88,176.79,59.08]
[1747255077184,5.6532,176.87,176.84,5.6539]
[1747255077384,119.9184,176.88,176.79,59.08]
[1747255078389,5.6536,176.86,176.79,59.08]
[1747255078989,5.6536,176.86,176.82,5.6544]
[1747255079988,5.6537,176.85,176.82,5.6544]
[1747255080386,5.6537,176.85,176.79,59.08]
[1747255080990,5.6537,176.85,176.82,5.6545]
[1747255083183,119.9184,176.88,176.79,59.08]
[1747255083687,5.6538,176.85,176.82,5.6545]
[1747255084090,5.6538,176.85,176.79,59.08]
[1747255084091,119.9184,176.88,176.79,59.08]
[1747255084392,5.654,176.84,176.81,5.6547]
[1747255085189,5.6537,176.85,176.79,59.08]
[1747255085391,60.9603,176.92,176.79,68.9713561]
[1747255085589,58.6,176.91,176.82,9.8913561]
[1747255085790,5.6521,176.9,176.87,5.6529]
[1747255086192,5.6517,176.91,176.88,5.6524]
[1747255086691,5.6517,176.91,176.84,1.9109]
[1747255087694,5.6515,176.92,176.84,1.9109]
[1747255088189,5.6515,176.92,176.85,9.8913561]
[1747255088597,5.6515,176.92,176.89,5.6521]
[1747255092301,5.6511,176.93,176.9,5.6519]
[1747255094404,488.46,176.97,176.87,59.1]
[1747255094600,58.46,176.96,176.88,9.8913561]
[1747255094800,5.6502,176.96,176.92,5.6512]
[1747255094995,59.08,176.98,176.89,1.9226]
[1747255095200,117.56,176.98,176.89,1.9226]
[1747255095701,58.46,176.97,176.89,1.9226]
[1747255095901,5.6509,176.94,176.9,5.6518]
[1747255096102,5.6509,176.94,176.89,1.9226]
[1747255096407,5.6509,176.94,176.9,5.6518]
[1747255097106,58.46,176.97,176.87,59.1]
[1747255097707,5.6518,176.91,176.88,5.6525]
[1747255097899,68.3513561,176.97,176.87,59.1]
[1747255098308,1.8924,176.96,176.87,59.1]
[1747255098610,5.6515,176.92,176.89,5.6522]
[1747255099109,1.8924,176.96,176.87,59.1]
[1747255099306,5.6506,176.95,176.91,5.6515]
[1747255101209,5.6502,176.96,176.87,59.1]
[1747255101506,58.3,176.97,176.87,59.1]
[1747255102605,5.6504,176.95,176.92,5.6511]
[1747255104911,5.6502,176.96,176.93,5.6509]
[1747255105113,5.6502,176.96,176.87,59.1]
[1747255105412,5.6502,176.96,176.93,5.6509]
[1747255105812,5.6502,176.96,176.88,9.8913561]
[1747255106013,5.6502,176.96,176.93,5.6509]
[1747255107612,5.6504,176.95,176.93,5.6509]
[1747255107913,5.6504,176.95,176.92,5.6512]
[1747255109315,58.14,176.97,176.88,9.8913561]
[1747255109912,5.6509,176.94,176.91,5.6517]
[1747255110822,5.6509,176.94,176.92,5.6513]
[1747255111016,5.6504,176.95,176.88,9.8913561]
[1747255111217,58.14,176.97,176.88,9.8913561]
[1747255111622,58.14,176.97,176.92,5.6514]
[1747255112118,5.6506,176.95,176.92,5.6514]
[1747255113023,5.6506,176.95,176.93,5.651]
[1747255113322,5.6502,176.96,176.93,5.651]
[1747255113724,58.14,176.97,176.93,5.651]
[1747255114523,5.6504,176.95,176.92,5.6512]
[1747255114725,5.6504,176.95,176.88,9.8913561]
[1747255115025,58.14,176.97,176.88,9.8913561]
[1747255115220,5.6504,176.96,176.88,9.8913561]
[1747255115623,58.14,176.97,176.88,9.8913561]
[1747255116421,63.79,176.97,176.94,5.6505]
[1747255116622,58.14,176.97,176.94,5.6505]
[1747255117028,5.6501,176.96,176.93,5.6509]
[1747255117626,5.6505,176.95,176.91,5.6514]
[1747255117922,58.14,176.97,176.91,5.6514]
[1747255118126,5.6509,176.94,176.91,5.6514]